[Event "Live Chess"]
[Site "Chess.com"]
[Date "2023.05.21"]
[Round "-"]
[White "JoshMcK"]
[Black "TheSmoulderingMaster"]
[Result "0-1"]
[WhiteElo "1513"]
[BlackElo "1674"]
[TimeControl "300"]
[EndTime "3:38:39 PDT"]
[Termination "TheSmoulderingMaster won by resignation"]

1. e4 {[%clk 0:04:58.9]} 1... c5 {[%clk 0:04:57.5]} 2. c3 {[%clk 0:04:57.8]}
2... d5 {[%clk 0:04:56.5]} 3. exd5 {[%clk 0:04:56.8]} 3... Qxd5 {[%clk
0:04:55.8]} 4. d4 {[%clk 0:04:56.7]} 4... Nc6 {[%clk 0:04:54.2]} 5. Nf3 {[%clk
0:04:55.5]} 5... Bg4 {[%clk 0:04:52.7]} 6. dxc5 {[%clk 0:04:53.8]} 6... Qxc5
{[%clk 0:04:51.4]} 7. Na3 {[%clk 0:04:51.5]} 7... e6 {[%clk 0:04:49.8]} 8. Nb5
{[%clk 0:04:49.3]} 8... Rc8 {[%clk 0:04:47]} 9. h3 {[%clk 0:04:37.2]} 9... Bh5
{[%clk 0:04:45.2]} 10. Be3 {[%clk 0:04:26.7]} 10... Qd5 {[%clk 0:04:23.9]} 11.
Qxd5 {[%clk 0:04:21.2]} 11... exd5 {[%clk 0:04:22.7]} 12. Nxa7 {[%clk
0:04:15.4]} 12... Nxa7 {[%clk 0:04:18.7]} 13. Bxa7 {[%clk 0:04:13]} 13... Nf6
{[%clk 0:04:18]} 14. Ne5 {[%clk 0:04:03.3]} 14... Bd6 {[%clk 0:04:14.3]} 15. Nf3
{[%clk 0:03:55]} 15... Bxf3 {[%clk 0:04:12.2]} 16. gxf3 {[%clk 0:03:53.7]} 16...
O-O {[%clk 0:04:11.6]} 17. O-O-O {[%clk 0:03:52.7]} 17... Ra8 {[%clk 0:04:06.9]}
18. Bd4 {[%clk 0:03:50.6]} 18... Rxa2 {[%clk 0:04:02.2]} 19. Bxf6 {[%clk
0:03:49.1]} 19... gxf6 {[%clk 0:04:01.4]} 20. Rxd5 {[%clk 0:03:47.7]} 20... Be5
{[%clk 0:03:58.9]} 21. Rg1+ {[%clk 0:03:41.1]} 21... Kh8 {[%clk 0:03:57.1]} 22.
Bc4 {[%clk 0:03:40.5]} 22... Ra1+ {[%clk 0:03:52.7]} 0-1

[Event "Live Chess"]
[Site "Chess.com"]
[Date "2023.05.21"]
[Round "-"]
[White "BritishIsles"]
[Black "RoaringKnights"]
[Result "1-0"]
[WhiteElo "2415"]
[BlackElo "1074"]
[TimeControl "300"]
[EndTime "3:38:52 PDT"]
[Termination "BritishIsles won by checkmate"]

1. d4 {[%clk 0:04:58.3]} 1... c6 {[%clk 0:04:58.4]} 2. e4 {[%clk 0:04:56.9]}
2... d5 {[%clk 0:04:56.8]} 3. exd5 {[%clk 0:04:56.8]} 3... cxd5 {[%clk
0:04:55.7]} 4. c4 {[%clk 0:04:55.3]} 4... dxc4 {[%clk 0:04:54.2]} 5. Bxc4 {[%clk
0:04:53.3]} 5... Bf5 {[%clk 0:04:53.7]} 6. Qb3 {[%clk 0:04:46.1]} 6... e6 {[%clk
0:04:47.8]} 7. Qxb7 {[%clk 0:04:44.3]} 7... Nd7 {[%clk 0:04:46.9]} 8. Bb5 {[%clk
0:04:37.9]} 8... Rb8 {[%clk 0:04:43.9]} 9. Bxd7+ {[%clk 0:04:36.2]} 9... Qxd7
{[%clk 0:04:41.5]} 10. Qxb8+ {[%clk 0:04:34.5]} 10... Qd8 {[%clk 0:04:39.3]} 11.
Qxd8+ {[%clk 0:04:32.6]} 11... Kxd8 {[%clk 0:04:38.2]} 12. Nc3 {[%clk
0:04:31.5]} 12... Bb4 {[%clk 0:04:37.3]} 13. Nf3 {[%clk 0:04:29.7]} 13... Nf6
{[%clk 0:04:36.5]} 14. O-O {[%clk 0:04:28.5]} 14... Bxc3 {[%clk 0:04:35.3]} 15.
bxc3 {[%clk 0:04:27]} 15... Ne4 {[%clk 0:04:34.7]} 16. Ng5 {[%clk 0:04:22.2]}
16... Nxg5 {[%clk 0:04:30.2]} 17. Bxg5+ {[%clk 0:04:22.1]} 17... f6 {[%clk
0:04:29.2]} 18. Bf4 {[%clk 0:04:20.4]} 18... Ke7 {[%clk 0:04:27.8]} 19. Rfe1
{[%clk 0:04:16.4]} 19... Rc8 {[%clk 0:04:23.9]} 20. Rac1 {[%clk 0:04:14]} 20...
Kf7 {[%clk 0:04:21.4]} 21. c4 {[%clk 0:04:11.6]} 21... Kg6 {[%clk 0:04:18.8]}
22. f3 {[%clk 0:04:10.4]} 22... Kh5 {[%clk 0:04:17]} 23. g4+ {[%clk 0:04:08.9]}
23... Bxg4 {[%clk 0:04:15.3]} 24. fxg4+ {[%clk 0:04:08.8]} 24... Kxg4 {[%clk
0:04:14.2]} 25. Bg3 {[%clk 0:04:07.8]} 25... h5 {[%clk 0:04:12.6]} 26. Rxe6
{[%clk 0:04:05.1]} 26... h4 {[%clk 0:04:10.6]} 27. Re4+ {[%clk 0:04:03.8]} 27...
Kg5 {[%clk 0:04:08.9]} 28. Bxh4+ {[%clk 0:03:59.3]} 28... Kf5 {[%clk 0:04:07.9]}
29. Re7 {[%clk 0:03:54.4]} 29... Kg4 {[%clk 0:04:06.6]} 30. Bg3 {[%clk
0:03:51.9]} 30... f5 {[%clk 0:04:04.9]} 31. Rxg7+ {[%clk 0:03:49.9]} 31... Kf3
{[%clk 0:04:03.3]} 32. Rf1+ {[%clk 0:03:47.9]} 32... Ke4 {[%clk 0:04:01.5]} 33.
d5 {[%clk 0:03:46.6]} 33... Kd4 {[%clk 0:04:00.2]} 34. d6 {[%clk 0:03:45.4]}
34... Kxc4 {[%clk 0:03:59.1]} 35. d7 {[%clk 0:03:44.5]} 35... Rd8 {[%clk
0:03:57.5]} 36. Bh4 {[%clk 0:03:43.5]} 36... Rxd7 {[%clk 0:03:55.4]} 37. Rxd7
{[%clk 0:03:41.9]} 37... Kc3 {[%clk 0:03:54.6]} 38. Rc1+ {[%clk 0:03:39.7]}
38... Kb4 {[%clk 0:03:53.1]} 39. Rb7+ {[%clk 0:03:37]} 39... Ka5 {[%clk
0:03:52]} 40. Rxa7+ {[%clk 0:03:35.8]} 40... Kb6 {[%clk 0:03:49.9]} 41. Rac7
{[%clk 0:03:35.7]} 41... Kb5 {[%clk 0:03:47.9]} 42. Bf2 {[%clk 0:03:35.6]} 42...
Ka4 {[%clk 0:03:47.1]} 43. Rb7 {[%clk 0:03:33.5]} 43... Ka5 {[%clk 0:03:45.3]}
44. Rc8 {[%clk 0:03:30.7]} 44... Ka6 {[%clk 0:03:42.9]} 45. Rb3 {[%clk
0:03:29.3]} 45... f4 {[%clk 0:03:33.6]} 46. Ra8# {[%clk 0:03:27.4]} 1-0

[Event "Live Chess"]
[Site "Chess.com"]
[Date "2023.05.21"]
[Round "-"]
[White "DoYouLikeCurry"]
[Black "Reggie016"]
[Result "1-0"]
[WhiteElo "1400"]
[BlackElo "1116"]
[TimeControl "300"]
[EndTime "3:38:55 PDT"]
[Termination "DoYouLikeCurry won by resignation"]

1. e4 {[%clk 0:04:57.6]} 1... e6 {[%clk 0:04:59.5]} 2. d4 {[%clk 0:04:55.9]}
2... d5 {[%clk 0:04:59.2]} 3. e5 {[%clk 0:04:55]} 3... c5 {[%clk 0:04:57.1]} 4.
c3 {[%clk 0:04:54.5]} 4... Nc6 {[%clk 0:04:56.8]} 5. Nf3 {[%clk 0:04:52.6]} 5...
Bd7 {[%clk 0:04:56.5]} 6. a3 {[%clk 0:04:31.2]} 6... Qb6 {[%clk 0:04:55.9]} 7.
b4 {[%clk 0:04:28.1]} 7... cxd4 {[%clk 0:04:51.8]} 8. cxd4 {[%clk 0:04:28]} 8...
Nge7 {[%clk 0:04:47.9]} 9. Bb2 {[%clk 0:04:24.4]} 9... Nf5 {[%clk 0:04:46.2]}
10. Be2 {[%clk 0:04:21.2]} 10... Be7 {[%clk 0:04:44.9]} 11. O-O {[%clk
0:04:18.6]} 11... O-O {[%clk 0:04:44.6]} 12. Qd3 {[%clk 0:04:15.4]} 12... Rac8
{[%clk 0:04:37.8]} 13. Nbd2 {[%clk 0:04:12.4]} 13... f6 {[%clk 0:04:30.1]} 14.
Nb3 {[%clk 0:04:08.2]} 14... fxe5 {[%clk 0:04:25.3]} 15. Nxe5 {[%clk 0:04:07.4]}
15... Nxe5 {[%clk 0:04:13.1]} 16. dxe5 {[%clk 0:04:07.3]} 16... a6 {[%clk
0:03:59.8]} 17. Rac1 {[%clk 0:04:03]} 17... Bb5 {[%clk 0:03:55.6]} 18. Qd2
{[%clk 0:03:56.4]} 18... Bxe2 {[%clk 0:03:33]} 19. Qxe2 {[%clk 0:03:56.3]} 19...
Bg5 {[%clk 0:03:24.3]} 20. Rxc8 {[%clk 0:03:52.2]} 20... Rxc8 {[%clk 0:03:23.3]}
21. Nc5 {[%clk 0:03:44.3]} 21... Qc6 {[%clk 0:03:03.5]} 22. f4 {[%clk
0:03:23.5]} 22... Be7 {[%clk 0:02:55.5]} 23. Nb3 {[%clk 0:03:18.9]} 23... Qc2
{[%clk 0:02:50.8]} 24. Qxc2 {[%clk 0:03:14.8]} 24... Rxc2 {[%clk 0:02:50.7]} 25.
Bc1 {[%clk 0:03:07]} 25... d4 {[%clk 0:02:42.6]} 26. g4 {[%clk 0:02:59.7]} 26...
Ne3 {[%clk 0:02:39.3]} 27. Nxd4 {[%clk 0:02:54.1]} 27... Rc4 {[%clk 0:02:26.8]}
28. Bxe3 {[%clk 0:02:50]} 1-0

[Event "Live Chess"]
[Site "Chess.com"]
[Date "2023.05.21"]
[Round "-"]
[White "Tushinskiy"]
[Black "Missedidea"]
[Result "1-0"]
[WhiteElo "2192"]
[BlackElo "1835"]
[TimeControl "300"]
[EndTime "3:39:07 PDT"]
[Termination "Tushinskiy won by checkmate"]

1. d4 {[%clk 0:04:54.4]} 1... Nf6 {[%clk 0:04:58.2]} 2. c3 {[%clk 0:04:54.3]}
2... g6 {[%clk 0:04:56.2]} 3. Nf3 {[%clk 0:04:54.2]} 3... Bg7 {[%clk 0:04:55.1]}
4. Bf4 {[%clk 0:04:54.1]} 4... d6 {[%clk 0:04:54]} 5. Bg3 {[%clk 0:04:54]} 5...
O-O {[%clk 0:04:51.7]} 6. Nbd2 {[%clk 0:04:53.9]} 6... Nbd7 {[%clk 0:04:47.2]}
7. e4 {[%clk 0:04:53.1]} 7... e5 {[%clk 0:04:42.4]} 8. dxe5 {[%clk 0:04:53]}
8... dxe5 {[%clk 0:04:40.9]} 9. Qc2 {[%clk 0:04:45.2]} 9... Qe7 {[%clk
0:04:36.9]} 10. Be2 {[%clk 0:04:44.2]} 10... c6 {[%clk 0:04:29.6]} 11. O-O
{[%clk 0:04:44.1]} 11... Re8 {[%clk 0:04:25.9]} 12. b4 {[%clk 0:04:42.4]} 12...
b5 {[%clk 0:04:19.6]} 13. a4 {[%clk 0:04:40.7]} 13... a6 {[%clk 0:04:14.6]} 14.
axb5 {[%clk 0:04:39.1]} 14... cxb5 {[%clk 0:04:10.4]} 15. Bxb5 {[%clk
0:04:37.3]} 15... Bb7 {[%clk 0:04:06.2]} 16. Be2 {[%clk 0:04:33.1]} 16... Qd6
{[%clk 0:03:53.3]} 17. Rfd1 {[%clk 0:04:29.4]} 17... Qb6 {[%clk 0:03:50.7]} 18.
Nc4 {[%clk 0:04:24.9]} 18... Qc7 {[%clk 0:03:47.5]} 19. Nd6 {[%clk 0:04:22.8]}
19... Re7 {[%clk 0:03:44.1]} 20. Nxb7 {[%clk 0:04:20.3]} 20... Qxb7 {[%clk
0:03:42.3]} 21. Bd3 {[%clk 0:04:19.3]} 21... Nh5 {[%clk 0:03:37.6]} 22. Qe2
{[%clk 0:04:16.1]} 22... Nf4 {[%clk 0:03:29.7]} 23. Bxf4 {[%clk 0:04:13.7]}
23... exf4 {[%clk 0:03:27.3]} 24. Rxa6 {[%clk 0:04:12.7]} 24... Rxa6 {[%clk
0:03:24.4]} 25. Bxa6 {[%clk 0:04:12.6]} 25... Qb6 {[%clk 0:03:17.4]} 26. Bc4
{[%clk 0:04:08.9]} 26... Bxc3 {[%clk 0:03:12.7]} 27. b5 {[%clk 0:04:03.9]} 27...
Ne5 {[%clk 0:03:06.3]} 28. Nxe5 {[%clk 0:03:59.7]} 28... Rxe5 {[%clk 0:03:04.1]}
29. Rd7 {[%clk 0:03:43.3]} 29... Qc5 {[%clk 0:02:51.3]} 30. Bxf7+ {[%clk
0:03:37.8]} 30... Kf8 {[%clk 0:02:49.8]} 31. Rd5 {[%clk 0:03:34.4]} 31... Rxd5
{[%clk 0:02:42.6]} 32. Bxd5 {[%clk 0:03:34.3]} 32... Bd4 {[%clk 0:02:39.3]} 33.
g3 {[%clk 0:03:33]} 33... Qc1+ {[%clk 0:02:34.3]} 34. Kg2 {[%clk 0:03:31.4]}
34... Kg7 {[%clk 0:02:28.6]} 35. Qf3 {[%clk 0:03:27.5]} 35... g5 {[%clk
0:02:23]} 36. Qh5 {[%clk 0:03:15.9]} 36... Qd2 {[%clk 0:02:14.1]} 37. Qxg5+
{[%clk 0:03:08.5]} 37... Kh8 {[%clk 0:02:07.4]} 38. Qg8# {[%clk 0:03:07]} 1-0

[Event "Live Chess"]
[Site "Chess.com"]
[Date "2023.05.21"]
[Round "-"]
[White "ItsNot_Jasper"]
[Black "WombatIn_A_Box"]
[Result "1-0"]
[WhiteElo "1376"]
[BlackElo "570"]
[TimeControl "300"]
[EndTime "3:39:16 PDT"]
[Termination "ItsNot_Jasper won by checkmate"]

1. d4 {[%clk 0:04:58.7]} 1... d5 {[%clk 0:04:55.7]} 2. c4 {[%clk 0:04:57.9]}
2... dxc4 {[%clk 0:04:53.5]} 3. e3 {[%clk 0:04:56]} 3... b5 {[%clk 0:04:51.9]}
4. a4 {[%clk 0:04:54.8]} 4... c6 {[%clk 0:04:48.3]} 5. axb5 {[%clk 0:04:53.7]}
5... cxb5 {[%clk 0:04:47.2]} 6. Qf3 {[%clk 0:04:53.4]} 6... Nd7 {[%clk
0:04:19.8]} 7. Qxa8 {[%clk 0:04:47.8]} 7... Bb7 {[%clk 0:04:19.1]} 8. Qxb7
{[%clk 0:04:46.7]} 8... Qb6 {[%clk 0:04:17]} 9. Qc8+ {[%clk 0:04:38.6]} 9... Qd8
{[%clk 0:04:12.1]} 10. Qxd8+ {[%clk 0:04:38.3]} 10... Kxd8 {[%clk 0:04:10.1]}
11. Rxa7 {[%clk 0:04:38.1]} 11... Ngf6 {[%clk 0:04:04.8]} 12. Nf3 {[%clk
0:04:33.7]} 12... Nd5 {[%clk 0:04:03.2]} 13. Nc3 {[%clk 0:04:25.5]} 13... Nb4
{[%clk 0:03:58.2]} 14. Be2 {[%clk 0:04:20.3]} 14... Nc2+ {[%clk 0:03:53.5]} 15.
Kf1 {[%clk 0:04:19.6]} 15... Nb4 {[%clk 0:03:49.3]} 16. g3 {[%clk 0:04:17.5]}
16... Nc6 {[%clk 0:03:48.4]} 17. Ra1 {[%clk 0:04:14.4]} 17... e6 {[%clk
0:03:45]} 18. Kg2 {[%clk 0:04:13.4]} 18... Bb4 {[%clk 0:03:42.5]} 19. Nxb5
{[%clk 0:04:12]} 19... Re8 {[%clk 0:03:36.9]} 20. Rd1 {[%clk 0:04:08.5]} 20...
Ke7 {[%clk 0:03:35.2]} 21. Bd2 {[%clk 0:04:07]} 21... Bxd2 {[%clk 0:03:32]} 22.
Rxd2 {[%clk 0:04:06.9]} 22... Rb8 {[%clk 0:03:29.4]} 23. Nc3 {[%clk 0:04:03.6]}
23... Rb3 {[%clk 0:03:24.3]} 24. Bxc4 {[%clk 0:04:01.6]} 24... Rb6 {[%clk
0:03:17.6]} 25. d5 {[%clk 0:03:59.1]} 25... exd5 {[%clk 0:03:15.7]} 26. Nxd5+
{[%clk 0:03:58.6]} 26... Kd6 {[%clk 0:03:13.9]} 27. Nxb6+ {[%clk 0:03:58.5]}
27... Kc7 {[%clk 0:03:10.1]} 28. Rxd7+ {[%clk 0:03:56.8]} 28... Kxb6 {[%clk
0:03:08.2]} 29. Rxf7 {[%clk 0:03:56.1]} 29... h6 {[%clk 0:03:06]} 30. Rxg7
{[%clk 0:03:55.1]} 30... h5 {[%clk 0:03:05.1]} 31. Ra3 {[%clk 0:03:54.4]} 31...
Kc5 {[%clk 0:03:03.3]} 32. Be2 {[%clk 0:03:51.7]} 32... Nb4 {[%clk 0:02:59.2]}
33. Ra5+ {[%clk 0:03:49.1]} 33... Kb6 {[%clk 0:02:57.4]} 34. Rxh5 {[%clk
0:03:47.5]} 34... Nc2 {[%clk 0:02:53.6]} 35. Rg6+ {[%clk 0:03:46.5]} 35... Kc7
{[%clk 0:02:51.2]} 36. Rh7+ {[%clk 0:03:46.4]} 36... Kc8 {[%clk 0:02:50]} 37.
Rg8# {[%clk 0:03:46.3]} 1-0

[Event "Live Chess"]
[Site "Chess.com"]
[Date "2023.05.21"]
[Round "-"]
[White "McSlash1"]
[Black "Abde2012"]
[Result "1-0"]
[WhiteElo "2021"]
[BlackElo "738"]
[TimeControl "300"]
[EndTime "3:39:16 PDT"]
[Termination "McSlash1 won by checkmate"]

1. e4 {[%clk 0:04:59]} 1... c6 {[%clk 0:04:59.4]} 2. d4 {[%clk 0:04:58.1]} 2...
d5 {[%clk 0:04:58.7]} 3. Nc3 {[%clk 0:04:58]} 3... Be6 {[%clk 0:04:52.5]} 4. e5
{[%clk 0:04:57.1]} 4... Nd7 {[%clk 0:04:51.3]} 5. Bd3 {[%clk 0:04:56.5]} 5... g6
{[%clk 0:04:44.9]} 6. f4 {[%clk 0:04:55.8]} 6... Nh6 {[%clk 0:04:42.3]} 7. h3
{[%clk 0:04:53.6]} 7... Bg7 {[%clk 0:04:41.6]} 8. Nf3 {[%clk 0:04:53]} 8... O-O
{[%clk 0:04:37.9]} 9. O-O {[%clk 0:04:52.9]} 9... c5 {[%clk 0:04:31.2]} 10. dxc5
{[%clk 0:04:42.6]} 10... Nxc5 {[%clk 0:04:28.9]} 11. Be2 {[%clk 0:04:42.3]}
11... Qb6 {[%clk 0:04:24.6]} 12. Be3 {[%clk 0:04:40.4]} 12... Nf5 {[%clk
0:04:16.7]} 13. Bf2 {[%clk 0:04:38.9]} 13... d4 {[%clk 0:04:10.8]} 14. Nxd4
{[%clk 0:04:35.1]} 14... Nxd4 {[%clk 0:04:09]} 15. Qxd4 {[%clk 0:04:35]} 15...
Rad8 {[%clk 0:03:45.2]} 16. Qxc5 {[%clk 0:04:33.9]} 16... Qxc5 {[%clk
0:03:43.1]} 17. Bxc5 {[%clk 0:04:33.8]} 17... Rd2 {[%clk 0:03:38]} 18. Rad1
{[%clk 0:04:32.2]} 18... Rxc2 {[%clk 0:03:34]} 19. Bxe7 {[%clk 0:04:28.7]} 19...
Re8 {[%clk 0:03:32.7]} 20. Ba3 {[%clk 0:04:28.1]} 20... Bxa2 {[%clk 0:03:27]}
21. Nxa2 {[%clk 0:04:25.3]} 21... Bxe5 {[%clk 0:03:24.1]} 22. fxe5 {[%clk
0:04:23.5]} 22... Rxe5 {[%clk 0:03:19.8]} 23. Rd8+ {[%clk 0:04:17.5]} 23... Kg7
{[%clk 0:03:17.5]} 24. Bf8+ {[%clk 0:04:17]} 24... Kg8 {[%clk 0:02:58.1]} 25.
Bh6+ {[%clk 0:04:16.9]} 25... Re8 {[%clk 0:02:54.8]} 26. Rxe8# {[%clk
0:04:16.8]} 1-0

[Event "Live Chess"]
[Site "Chess.com"]
[Date "2023.05.21"]
[Round "-"]
[White "MMmaaxxxx"]
[Black "AttackingSnowLeopard"]
[Result "1-0"]
[WhiteElo "2030"]
[BlackElo "2167"]
[TimeControl "300"]
[EndTime "3:39:28 PDT"]
[Termination "MMmaaxxxx won by resignation"]

1. e4 {[%clk 0:04:59.3]} 1... e5 {[%clk 0:04:57.9]} 2. Nc3 {[%clk 0:04:58.6]}
2... Nf6 {[%clk 0:04:55.6]} 3. f4 {[%clk 0:04:57.4]} 3... d5 {[%clk 0:04:54.3]}
4. fxe5 {[%clk 0:04:56.9]} 4... Nxe4 {[%clk 0:04:53.7]} 5. Qf3 {[%clk
0:04:56.6]} 5... Nxc3 {[%clk 0:04:52.4]} 6. bxc3 {[%clk 0:04:55.4]} 6... Be6
{[%clk 0:04:49.7]} 7. d4 {[%clk 0:04:54.7]} 7... c5 {[%clk 0:04:47.6]} 8. Bd3
{[%clk 0:04:53.4]} 8... Nc6 {[%clk 0:04:46.6]} 9. Ne2 {[%clk 0:04:51.3]} 9...
Be7 {[%clk 0:04:44.8]} 10. O-O {[%clk 0:04:49.9]} 10... O-O {[%clk 0:04:43]} 11.
Nf4 {[%clk 0:04:45.7]} 11... Bg5 {[%clk 0:04:33.8]} 12. Nxe6 {[%clk 0:04:34.1]}
12... fxe6 {[%clk 0:04:32.1]} 13. Qxf8+ {[%clk 0:04:20.2]} 13... Qxf8 {[%clk
0:04:28]} 14. Rxf8+ {[%clk 0:04:20.1]} 14... Rxf8 {[%clk 0:04:26.7]} 15. Bxg5
{[%clk 0:04:11.7]} 15... cxd4 {[%clk 0:04:26]} 16. cxd4 {[%clk 0:03:44.1]} 16...
Nxd4 {[%clk 0:04:25.9]} 17. Rf1 {[%clk 0:03:40.3]} 17... Rc8 {[%clk 0:04:21.4]}
18. Be7 {[%clk 0:03:26.9]} 18... h6 {[%clk 0:04:01.5]} 19. c3 {[%clk 0:03:19.9]}
19... Nc6 {[%clk 0:03:58.7]} 20. Bd6 {[%clk 0:03:16.6]} 20... Na5 {[%clk
0:03:48.7]} 21. Bg6 {[%clk 0:03:11.4]} 21... Nc4 {[%clk 0:03:43.4]} 22. Bf7+
{[%clk 0:03:03.6]} 22... Kh8 {[%clk 0:03:40.2]} 23. Bxe6 {[%clk 0:03:03]} 23...
Re8 {[%clk 0:03:39.2]} 24. Bxd5 {[%clk 0:02:47.7]} 24... Nxe5 {[%clk 0:03:36.9]}
25. Bxe5 {[%clk 0:02:26.9]} 25... Rxe5 {[%clk 0:03:36.8]} 26. Bxb7 {[%clk
0:02:24.7]} 1-0

[Event "Live Chess"]
[Site "Chess.com"]
[Date "2023.05.21"]
[Round "-"]
[White "domrobson"]
[Black "CheckThis4"]
[Result "0-1"]
[WhiteElo "1716"]
[BlackElo "2496"]
[TimeControl "300"]
[EndTime "3:39:40 PDT"]
[Termination "CheckThis4 won by resignation"]

1. d4 {[%clk 0:04:58.1]} 1... Nf6 {[%clk 0:04:58.1]} 2. c4 {[%clk 0:04:57]} 2...
g6 {[%clk 0:04:57.6]} 3. Nc3 {[%clk 0:04:55.5]} 3... d5 {[%clk 0:04:56]} 4. cxd5
{[%clk 0:04:52.5]} 4... Nxd5 {[%clk 0:04:55.9]} 5. e4 {[%clk 0:04:50.9]} 5...
Nxc3 {[%clk 0:04:54.9]} 6. bxc3 {[%clk 0:04:47.1]} 6... Bg7 {[%clk 0:04:54.4]}
7. Nf3 {[%clk 0:04:45.3]} 7... c5 {[%clk 0:04:52.1]} 8. Be3 {[%clk 0:04:43.8]}
8... Qa5 {[%clk 0:04:49.3]} 9. Bd2 {[%clk 0:04:26.2]} 9... Bg4 {[%clk
0:04:41.8]} 10. Be2 {[%clk 0:04:24.3]} 10... Nc6 {[%clk 0:04:29.1]} 11. Rb1
{[%clk 0:04:21.1]} 11... O-O {[%clk 0:04:22.7]} 12. O-O {[%clk 0:04:18.9]} 12...
Bxf3 {[%clk 0:03:52.8]} 13. Bxf3 {[%clk 0:04:16.1]} 13... cxd4 {[%clk 0:03:52]}
14. cxd4 {[%clk 0:04:14.8]} 14... Qxa2 {[%clk 0:03:50.9]} 15. Rxb7 {[%clk
0:04:11.4]} 15... Nxd4 {[%clk 0:03:47.3]} 16. Be3 {[%clk 0:04:02]} 16... Rfd8
{[%clk 0:03:19.4]} 17. Rxe7 {[%clk 0:03:36.2]} 17... a5 {[%clk 0:03:17.9]} 18.
Qb1 {[%clk 0:03:17.6]} 18... Nxf3+ {[%clk 0:03:14.1]} 19. gxf3 {[%clk
0:03:15.5]} 19... Qxb1 {[%clk 0:02:54.2]} 20. Rxb1 {[%clk 0:03:13.7]} 20... a4
{[%clk 0:02:53.7]} 21. Rbb7 {[%clk 0:03:13]} 21... a3 {[%clk 0:02:48.4]} 22.
Rxf7 {[%clk 0:03:10.6]} 22... Be5 {[%clk 0:02:41.6]} 23. f4 {[%clk 0:02:50.8]}
23... a2 {[%clk 0:02:40.5]} 24. fxe5 {[%clk 0:02:43.8]} 24... a1=Q+ {[%clk
0:02:38.1]} 25. Kg2 {[%clk 0:02:42.3]} 25... Qxe5 {[%clk 0:02:34.5]} 26. Bh6
{[%clk 0:02:27.7]} 26... Qxe4+ {[%clk 0:02:32.1]} 27. f3 {[%clk 0:02:21.9]}
27... Ra2+ {[%clk 0:02:26]} 28. Kg3 {[%clk 0:02:17.3]} 28... Qe5+ {[%clk
0:02:20.7]} 29. Bf4 {[%clk 0:02:14.5]} 29... Qh5 {[%clk 0:02:12.3]} 30. h4
{[%clk 0:02:02.7]} 30... Rf8 {[%clk 0:01:55.6]} 31. Rg7+ {[%clk 0:01:56.9]}
31... Kh8 {[%clk 0:01:54.9]} 0-1

[Event "Live Chess"]
[Site "Chess.com"]
[Date "2023.05.21"]
[Round "-"]
[White "GMMickeyAdams"]
[Black "Crowded_House"]
[Result "1-0"]
[WhiteElo "2794"]
[BlackElo "1638"]
[TimeControl "300"]
[EndTime "3:39:48 PDT"]
[Termination "GMMickeyAdams won on time"]

1. d4 {[%clk 0:04:57.2]} 1... d5 {[%clk 0:04:55.8]} 2. c4 {[%clk 0:04:54.9]}
2... c6 {[%clk 0:04:54.5]} 3. Nf3 {[%clk 0:04:52.7]} 3... e6 {[%clk 0:04:53]} 4.
b3 {[%clk 0:04:49.3]} 4... Nf6 {[%clk 0:04:51.9]} 5. e3 {[%clk 0:04:47.8]} 5...
Bd6 {[%clk 0:04:50.9]} 6. Bb2 {[%clk 0:04:45.9]} 6... Nbd7 {[%clk 0:04:47.6]} 7.
Nbd2 {[%clk 0:04:44]} 7... O-O {[%clk 0:04:46.6]} 8. Bd3 {[%clk 0:04:42.4]} 8...
b6 {[%clk 0:04:43.5]} 9. O-O {[%clk 0:04:38.1]} 9... Bb7 {[%clk 0:04:40.1]} 10.
Ne5 {[%clk 0:04:35.9]} 10... Qc7 {[%clk 0:04:36.7]} 11. f4 {[%clk 0:04:33.5]}
11... c5 {[%clk 0:04:22.2]} 12. Rc1 {[%clk 0:04:31.3]} 12... dxc4 {[%clk
0:04:18]} 13. Ndxc4 {[%clk 0:04:27]} 13... Ne8 {[%clk 0:04:07.7]} 14. Qh5 {[%clk
0:04:19]} 14... g6 {[%clk 0:04:00.4]} 15. Qh6 {[%clk 0:04:16.9]} 15... f6 {[%clk
0:03:43.4]} 16. Nxg6 {[%clk 0:04:06.4]} 16... hxg6 {[%clk 0:03:37.8]} 17. Qxg6+
{[%clk 0:04:03.1]} 17... Ng7 {[%clk 0:03:34.1]} 18. Qh7+ {[%clk 0:04:01.6]}
18... Kf7 {[%clk 0:03:31.9]} 19. Bg6+ {[%clk 0:04:00.3]} 19... Ke7 {[%clk
0:03:22.7]} 20. Qxg7+ {[%clk 0:03:58.9]} 20... Kd8 {[%clk 0:03:18.8]} 21. Rfd1
{[%clk 0:03:43.1]} 21... Qc6 {[%clk 0:03:09.8]} 22. Rc2 {[%clk 0:03:29.5]} 22...
Kc7 {[%clk 0:02:31.9]} 23. dxc5 {[%clk 0:03:20.8]} 23... Bxc5 {[%clk 0:02:14]}
24. Be4 {[%clk 0:02:32.6]} 24... Qxe4 {[%clk 0:01:56.2]} 25. Rxd7+ {[%clk
0:02:29.6]} 25... Kc6 {[%clk 0:01:45.9]} 26. Rc7+ {[%clk 0:01:59]} 26... Kb5
{[%clk 0:01:39.3]} 27. Qd7+ {[%clk 0:01:57.1]} 27... Bc6 {[%clk 0:01:06.9]} 28.
Qxc6+ {[%clk 0:01:55.3]} 28... Qxc6 {[%clk 0:01:04.1]} 29. a4+ {[%clk
0:01:54.9]} 29... Kb4 {[%clk 0:00:58.7]} 30. Rxc6 {[%clk 0:01:54.4]} 30... Kxb3
{[%clk 0:00:57.9]} 31. Rc3+ {[%clk 0:01:53.6]} 31... Kb4 {[%clk 0:00:55.3]} 32.
Rxe6 {[%clk 0:01:51]} 32... Kxa4 {[%clk 0:00:46]} 33. Kf2 {[%clk 0:01:48.8]}
33... Bb4 {[%clk 0:00:34.8]} 34. Rd3 {[%clk 0:01:47]} 34... Bc5 {[%clk
0:00:25.4]} 35. Bd4 {[%clk 0:01:45]} 35... Rac8 {[%clk 0:00:21.2]} 36. h4 {[%clk
0:01:41.6]} 36... Bxd4 {[%clk 0:00:19.5]} 37. Rxd4 {[%clk 0:01:40.4]} 37... Kb5
{[%clk 0:00:18.6]} 38. Nd6+ {[%clk 0:01:39.1]} 38... Kc5 {[%clk 0:00:15.2]} 39.
Nxc8 {[%clk 0:01:38.6]} 39... Rxc8 {[%clk 0:00:14.5]} 40. h5 {[%clk 0:01:37.5]}
40... Rf8 {[%clk 0:00:13.9]} 41. h6 {[%clk 0:01:36.5]} 41... b5 {[%clk
0:00:12.8]} 42. h7 {[%clk 0:01:35.7]} 42... a5 {[%clk 0:00:12.1]} 43. Rxf6
{[%clk 0:01:35]} 43... Rh8 {[%clk 0:00:10.6]} 44. Rf5+ {[%clk 0:01:34]} 44...
Kc6 {[%clk 0:00:09.1]} 45. Rh5 {[%clk 0:01:32.9]} 45... b4 {[%clk 0:00:08.6]}
46. Rc4+ {[%clk 0:01:31.5]} 46... Kb6 {[%clk 0:00:07]} 47. g4 {[%clk 0:01:29.7]}
47... Ka6 {[%clk 0:00:04.4]} 48. Rc6+ {[%clk 0:01:28.2]} 48... Kb7 {[%clk
0:00:02.6]} 49. Rg6 {[%clk 0:01:26.5]} 49... Kc7 {[%clk 0:00:01.6]} 50. Rg7+
{[%clk 0:01:25.4]} 50... Kb6 {[%clk 0:00:00.2]} 51. Rh6+ {[%clk 0:01:24.2]} 1-0